[Event "SVK-ch Open 2018"]
[Site "Banska Stiavnica"]
[Date "2018.07.14"]
[Round "8"]
[White "Bango, Lukas"]
[Black "Chmiel, Marcin"]
[Result "0-1"]
[ECO "C51"]
[WhiteElo "2148"]
[BlackElo "2249"]
[Annotator "NA"]
[PlyCount "56"]
[EventDate "2018.07.07"]
[EventType "swiss"]
[EventCountry "SVK"]
[SourceTitle "playchess.com"]
[Source "ChessBase"]
[SourceQuality "1"]
[TimeControl "40/5400+30:1800+30"]

1. e4 {[%emt 0:00:00]} e5 {[%emt 0:00:00]} 2. Nf3 {[%emt 0:00:00]} Nc6 {[%emt 0:00:00]} 3. Bc4 {[%emt 0:00:00]} Bc5 {[%emt 0:00:09]} 4. b4 {[%emt 0:00:00]} Bxb4 {[%emt 0:00:07]} 5. c3 {[%emt 0:00:04]} Be7 {[%emt 0:00:11]} 6. d4 {[%emt 0:00:19]} Na5 {[%emt 0:00:11]} 7. Bd3 {[%emt 0:02:11]} d6 {[%emt 0:01:07]} 8. dxe5 {[%emt 0:00:52]} dxe5 {[%emt 0:00:17]} 9. Nxe5 {[%emt 0:00:20]} Nf6 {[%emt 0:00:25]} 10. O-O {[%emt 0:01:44]} O-O {[%emt 0:00:09]} 11. h3 {[%emt 0:03:47]} Nd7 {[%emt 0:03:37]} 12. Nxd7 {[%emt 0:02:53]} Qxd7 {[%emt 0:03:51]} 13. Bc2 {[%emt 0:03:49]} Qxd1 {[%emt 0:03:29]} 14. Rxd1 {[%emt 0:00:33]} Be6 {[%emt 0:05:23]} 15. Bf4 {[%emt 0:01:43]} c5 {[%emt 0:01:51]} 16. Na3 {[%emt 0:05:34]} a6 {[%emt 0:00:56]} 17. Bc7 {[%emt 0:03:00]} Nc6 {[%emt 0:01:03]} 18. Bb3 {[%emt 0:00:18]} b5 {[%emt 0:03:48]} 19. Bxe6 {[%emt 0:05:22]} fxe6 {[%emt 0:00:58]} 20. Rd7 {[%emt 0:00:14]} Bf6 {[%emt 0:06:48]} 21. Rad1 {[%emt 0:07:29]} Bxc3 {[%emt 0:02:41]} 22. Bd6 {[%emt 0:00:03]} Rfc8 {[%emt 0:01:03]} 23. Bxc5 {[%emt 0:00:05]} Ne5 {[%emt 0:02:13]} 24. Ra7 {[%emt 0:00:05]} Rxa7 {[%emt 0:01:09]} 25. Bxa7 {[%emt 0:00:06]} b4 {[%emt 0:02:31]} 26. Nc2 {[%emt 0:02:33]} a5 {[%emt 0:01:08]} 27. Bd4 {[%emt 0:02:21]} Rd8 {[%emt 0:02:14]} 28. Kf1 {[%emt 0:03:33]} Nc6 {[%emt 0:00:34]} 0-1

[Event "SVK-ch Open 2018"]
[Site "Banska Stiavnica"]
[Date "2018.07.14"]
[Round "8"]
[White "Demeter, Peter"]
[Black "Molnar, Erno"]
[Result "1/2-1/2"]
[ECO "A20"]
[WhiteElo "2146"]
[BlackElo "2231"]
[Annotator "NA"]
[PlyCount "44"]
[EventDate "2018.07.07"]
[EventType "swiss"]
[EventCountry "SVK"]
[SourceTitle "playchess.com"]
[Source "ChessBase"]
[SourceQuality "1"]
[TimeControl "40/5400+30:1800+30"]

1. c4 {[%emt 0:00:00]} e5 {[%emt 0:00:00]} 2. d3 {[%emt 0:00:00]} Nc6 {[%emt 0:00:29]} 3. Nf3 {[%emt 0:00:00]} g6 {[%emt 0:08:26]} 4. g3 {[%emt 0:01:45]} Bg7 {[%emt 0:00:50]} 5. Bg2 {[%emt 0:00:08]} d6 {[%emt 0:00:31]} 6. O-O {[%emt 0:00:41]} f5 {[%emt 0:01:35]} 7. Nc3 {[%emt 0:01:18]} Nf6 {[%emt 0:01:31]} 8. e4 {[%emt 0:00:23]} O-O {[%emt 0:01:56]} 9. h3 {[%emt 0:10:00]} Kh8 {[%emt 0:06:56]} 10. exf5 {[%emt 0:08:41]} gxf5 {[%emt 0:04:01]} 11. d4 {[%emt 0:03:07]} e4 {[%emt 0:07:49]} 12. Nh4 {[%emt 0:10:41]} d5 {[%emt 0:03:43]} 13. cxd5 {[%emt 0:07:38]} Nxd5 {[%emt 0:01:54]} 14. Nxd5 {[%emt 0:02:16]} Qxd5 {[%emt 0:00:11]} 15. Qh5 {[%emt 0:00:59]} Qf7 {[%emt 0:05:34]} 16. Qxf7 {[%emt 0:03:18]} Rxf7 {[%emt 0:00:08]} 17. d5 {[%emt 0:00:30]} Nb4 {[%emt 0:01:18]} 18. Rd1 {[%emt 0:00:48]} Nd3 {[%emt 0:06:30]} 19. Rb1 {[%emt 0:00:38]} Bd7 {[%emt 0:11:33]} 20. Bf1 {[%emt 0:02:27]} Bb5 {[%emt 0:04:44]} 21. Ng2 {[%emt 0:02:14]} Rd8 {[%emt 0:17:44]} 22. Nf4 {[%emt 0:05:08]} Rfd7 {[%emt 0:05:55]} 1/2-1/2

[Event "SVK-ch Open 2018"]
[Site "Banska Stiavnica"]
[Date "2018.07.14"]
[Round "8"]
[White "Zatko, Gregor"]
[Black "Stockova, Zuzana"]
[Result "1-0"]
[ECO "A45"]
[WhiteElo "2144"]
[BlackElo "2301"]
[Annotator "NA"]
[PlyCount "109"]
[EventDate "2018.07.07"]
[EventType "swiss"]
[EventCountry "SVK"]
[SourceTitle "playchess.com"]
[Source "ChessBase"]
[SourceQuality "1"]
[TimeControl "40/5400+30:1800+30"]

1. d4 {[%emt 0:00:00]} Nf6 {[%emt 0:00:00]} 2. Bf4 {[%emt 0:00:00]} e6 {[%emt 0:00:30]} 3. e3 {[%emt 0:00:00]} c5 {[%emt 0:00:36]} 4. c3 {[%emt 0:00:06]} b6 {[%emt 0:01:36]} 5. Nf3 {[%emt 0:00:29]} Bb7 {[%emt 0:00:36]} 6. Bd3 {[%emt 0:03:37]} Be7 {[%emt 0:02:58] LiveBook: 63 Games A47: 1 d4 Nf6 2 Nf3 b6: Torre, London and Colle Systems} 7. Qe2 {[%emt 0:02:17]} (7. O-O O-O 8. h3 d5 9. Nbd2 Nbd7 10. Ne5 Rc8 11. Qf3 Nxe5 12. Bxe5 Nd7 13. Bh2 f5 14. Qe2 c4 15. Bc2 b5 16. a3 Qb6 17. Kh1 a5 18. f3 {0-1 (65) Nagle,S (2432)-Le,Q (2737) chess.com INT 2018}) 7... cxd4 {[%emt 0:09:00]} 8. exd4 {[%emt 0:02:10]} d6 {[%emt 0:00:50]} 9. Nbd2 {[%emt 0:01:07]} a6 {[%emt 0:08:52]} 10. O-O-O $146 {[%emt 0:05:14]} ({Predecessor:} 10. h3 Nbd7 11. O-O-O b5 12. Kb1 Rc8 13. Ne4 Bxe4 14. Bxe4 Nxe4 15. Qxe4 Nf6 16. Qd3 {0-1 (46) Cordovil,J (2168)-Shkapenko,P (2418) Lisbon 2014}) 10... Nc6 {[%emt 0:03:02]} 11. Kb1 {[%emt 0:00:57]} b5 {[%emt 0:01:21]} 12. Ne4 {[%emt 0:09:51]} Na5 {[%emt 0:03:47]} 13. h4 {[%emt 0:06:34]} h6 {[%emt 0:07:37]} (13... Nxe4 $11 14. Bxe4 Bxe4+ 15. Qxe4 d5) 14. Nxf6+ {[%emt 0:07:38]} gxf6 {[%emt 0:04:27]} 15. h5 {[%emt 0:01:54]} Qb6 {[%emt 0:05:33]} 16. Rhe1 {[%emt 0:08:47]} d5 {[%emt 0:06:38]} 17. Nh4 {[%emt 0:05:02]} O-O-O {[%emt 0:13:22]} 18. Nf5 {[%emt 0:07:08]} Bf8 {[%emt 0:00:17]} 19. Qe3 {[%emt 0:01:34]} Nc4 {[%emt 0:05:50]} 20. Bxc4 {[%emt 0:00:29]} dxc4 {[%emt 0:01:06]} 21. Nxh6 {[%emt 0:00:41]} Bxh6 {[%emt 0:03:07]} 22. Bxh6 {[%emt 0:00:04]} Bxg2 {[%emt 0:00:50]} 23. Qf4 {[%emt 0:08:50]} Qb7 {[%emt 0:05:07]} 24. Re3 {[%emt 0:02:27]} f5 {[%emt 0:06:57]} 25. Bg5 {[%emt 0:01:36]} Rdg8 {[%emt 0:00:24]} 26. h6 {[%emt 0:00:44]} Be4+ {[%emt 0:00:33]} 27. Ka1 {[%emt 0:01:56]} Qc7 {[%emt 0:00:47]} 28. Qh4 {[%emt 0:02:41]} Rg6 {[%emt 0:00:33]} 29. Bf4 {[%emt 0:00:52]} Qd8 {[%emt 0:00:58]} 30. Qh5 {[%emt 0:03:23]} Bd5 {[%emt 0:04:28]} 31. Rg3 {[%emt 0:05:17]} Rxg3 {[%emt 0:00:48]} 32. fxg3 {[%emt 0:05:48]} Qe7 {[%emt 0:00:17]} 33. Re1 {[%emt 0:02:34]} Be4 {[%emt 0:00:50]} 34. Re2 {[%emt 0:04:34]} Kb7 {[%emt 0:01:35]} 35. Rh2 {[%emt 0:00:33]} Rh7 {[%emt 0:00:33]} 36. Be5 {[%emt 0:00:30]} f6 {[%emt 0:00:18]} 37. Qh4 {[%emt 0:00:33]} fxe5 {[%emt 0:01:21]} 38. Qxe7+ {[%emt 0:00:01]} Rxe7 {[%emt 0:00:12]} 39. h7 {[%emt 0:00:05]} Rxh7 {[%emt 0:00:50]} 40. Rxh7+ {[%emt 0:00:01]} Kc6 {[%emt 0:00:13]} 41. dxe5 {[%emt 0:31:30]} a5 {[%emt 0:09:49]} 42. Re7 {[%emt 0:00:00]} Kd5 {[%emt 0:00:37]} 43. Rb7 {[%emt 0:00:00]} Kxe5 {[%emt 0:05:49]} 44. Rxb5+ {[%emt 0:00:00]} Kf6 {[%emt 0:00:12]} 45. b4 {[%emt 0:00:00]} cxb3 {[%emt 0:02:53]} 46. axb3 {[%emt 0:00:00]} Kg5 {[%emt 0:00:26]} 47. Re5 {[%emt 0:00:00]} Kg4 {[%emt 0:00:43]} 48. Rxe6 {[%emt 0:00:00]} Kxg3 {[%emt 0:00:14]} 49. Kb2 $18 {[%emt 0:00:00]} Kf3 {[%emt 0:06:44]} 50. c4 {[%emt 0:00:00]} f4 {[%emt 0:00:53]} 51. c5 {[%emt 0:00:00]} Ke3 {[%emt 0:01:42]} 52. c6 {[%emt 0:00:00]} f3 {[%emt 0:00:10]} 53. c7 {[%emt 0:00:00]} f2 {[%emt 0:00:09]} 54. c8=Q {[%emt 0:00:00]} f1=Q {[%emt 0:00:18]} 55. Qc5+ {[%emt 0:00:55]} 1-0

[Event "SVK-ch Open 2018"]
[Site "Banska Stiavnica"]
[Date "2018.07.14"]
[Round "8"]
[White "Horvath, Julia"]
[Black "Stanko, Ivan"]
[Result "1-0"]
[ECO "A50"]
[WhiteElo "2107"]
[BlackElo "1908"]
[Annotator "NA"]
[PlyCount "39"]
[EventDate "2018.07.07"]
[EventType "swiss"]
[EventCountry "SVK"]
[SourceTitle "playchess.com"]
[Source "ChessBase"]
[SourceQuality "1"]
[TimeControl "40/5400+30:1800+30"]

1. d4 {[%emt 0:00:00]} Nf6 {[%emt 0:04:54]} 2. c4 {[%emt 0:00:00]} Nc6 {[%emt 0:00:24]} 3. Nf3 {[%emt 0:00:00]} e6 {[%emt 0:00:31]} 4. a3 {[%emt 0:02:25]} a5 {[%emt 0:03:37]} 5. Nc3 {[%emt 0:00:15]} d5 {[%emt 0:01:44]} 6. Bg5 {[%emt 0:09:26]} Be7 {[%emt 0:03:13]} 7. e3 {[%emt 0:00:42]} O-O {[%emt 0:02:24]} 8. Bd3 {[%emt 0:00:54]} h6 {[%emt 0:05:36]} 9. Bf4 {[%emt 0:13:44]} Nh5 {[%emt 0:03:24]} 10. Bg3 {[%emt 0:01:48]} Nxg3 {[%emt 0:01:23]} 11. hxg3 {[%emt 0:00:05]} Bf6 {[%emt 0:00:58]} 12. Rc1 {[%emt 0:00:24]} dxc4 {[%emt 0:02:08]} 13. Bxc4 {[%emt 0:00:12]} e5 {[%emt 0:00:16]} 14. d5 {[%emt 0:02:00]} Ne7 {[%emt 0:00:18]} 15. Ne4 {[%emt 0:07:09]} Ng6 {[%emt 0:00:12]} 16. Qc2 {[%emt 0:01:58]} Bd7 {[%emt 0:07:45]} 17. d6 {[%emt 0:18:05]} c6 {[%emt 0:05:26]} 18. Nc5 {[%emt 0:03:15]} b6 {[%emt 0:01:06]} 19. Nxd7 {[%emt 0:01:00]} Qxd7 {[%emt 0:00:06]} 20. Qxg6 {[%emt 0:00:12]} 1-0

[Event "SVK-ch Open 2018"]
[Site "Banska Stiavnica"]
[Date "2018.07.14"]
[Round "8"]
[White "Brozyna, Mateusz"]
[Black "Posa, Norbert"]
[Result "1/2-1/2"]
[ECO "D02"]
[WhiteElo "2098"]
[BlackElo "2036"]
[Annotator "NA"]
[PlyCount "93"]
[EventDate "2018.07.07"]
[EventType "swiss"]
[EventCountry "SVK"]
[SourceTitle "playchess.com"]
[Source "ChessBase"]
[SourceQuality "1"]
[TimeControl "40/5400+30:1800+30"]

1. d4 {[%emt 0:00:00]} d5 {[%emt 0:00:03]} 2. Nf3 {[%emt 0:00:00]} Bf5 {[%emt 0:00:33]} 3. g3 {[%emt 0:00:00]} c6 {[%emt 0:00:12]} 4. Bg2 {[%emt 0:00:00]} h6 {[%emt 0:00:34]} 5. c4 {[%emt 0:00:06]} e6 {[%emt 0:01:10]} 6. O-O {[%emt 0:00:21]} Nf6 {[%emt 0:00:30]} 7. Nc3 {[%emt 0:00:09]} Bd6 {[%emt 0:01:30]} 8. Qb3 {[%emt 0:00:36]} Qb6 {[%emt 0:06:11]} 9. c5 {[%emt 0:00:26]} Qxb3 {[%emt 0:00:09]} 10. axb3 {[%emt 0:00:03]} Bc7 {[%emt 0:00:14]} 11. b4 {[%emt 0:01:08]} Ne4 {[%emt 0:06:53]} 12. Nd2 {[%emt 0:01:15]} Nxc3 {[%emt 0:01:43]} 13. bxc3 {[%emt 0:00:08]} O-O {[%emt 0:16:23]} 14. Bb2 {[%emt 0:02:09]} Nd7 {[%emt 0:02:32]} 15. c4 {[%emt 0:03:55]} a6 {[%emt 0:10:36]} 16. e4 {[%emt 0:12:36]} dxe4 {[%emt 0:03:56]} 17. Nxe4 {[%emt 0:00:36]} Rac8 {[%emt 0:16:16]} 18. Rfd1 {[%emt 0:05:45]} Rfd8 {[%emt 0:04:18]} 19. Nc3 {[%emt 0:05:09]} Nf6 {[%emt 0:05:07]} 20. d5 {[%emt 0:09:46]} exd5 {[%emt 0:00:07]} 21. cxd5 {[%emt 0:00:08]} cxd5 {[%emt 0:00:35]} 22. Nxd5 {[%emt 0:00:43]} Nxd5 {[%emt 0:00:21]} 23. Bxd5 {[%emt 0:03:28]} Bc2 {[%emt 0:02:44]} 24. Rdc1 {[%emt 0:19:44]} Rxd5 {[%emt 0:00:09]} 25. Rxc2 {[%emt 0:00:05]} Be5 {[%emt 0:02:28]} 26. Bxe5 {[%emt 0:00:29]} Rxe5 {[%emt 0:00:22]} 27. Rd1 {[%emt 0:00:07]} a5 {[%emt 0:04:22]} 28. bxa5 {[%emt 0:05:23]} Rexc5 {[%emt 0:04:16]} 29. Rd8+ {[%emt 0:00:23]} Rxd8 {[%emt 0:00:23]} 30. Rxc5 {[%emt 0:00:07]} Rd7 {[%emt 0:00:10]} 31. Rc8+ {[%emt 0:01:45]} Kh7 {[%emt 0:00:06]} 32. Kg2 {[%emt 0:00:06]} Kg6 {[%emt 0:00:26]} 33. Rc5 {[%emt 0:01:01]} Kf6 {[%emt 0:02:26]} 34. Kf3 {[%emt 0:00:23]} Re7 {[%emt 0:00:32]} 35. Rd5 {[%emt 0:02:29]} Re5 {[%emt 0:01:39]} 36. Rd6+ {[%emt 0:00:21]} Ke7 {[%emt 0:00:26]} 37. Rb6 {[%emt 0:00:07]} Rxa5 {[%emt 0:00:05]} 38. Rxb7+ {[%emt 0:00:05]} Kf6 {[%emt 0:01:27]} 39. Rb6+ {[%emt 0:00:11]} Ke7 {[%emt 0:00:11]} 40. h4 {[%emt 0:00:57]} h5 {[%emt 0:00:33]} 41. Kg2 {[%emt 0:30:28]} g6 {[%emt 0:30:36]} 42. f3 {[%emt 0:01:14]} Ra4 43. Kh3 Ra3 {[%emt 0:06:51]} 44. f4 {[%emt 0:00:42]} Ra5 {[%emt 0:00:29]} 45. Kg2 {[%emt 0:00:51]} Ra2+ {[%emt 0:00:00]} 46. Kf3 {[%emt 0:00:00]} Ra3+ {[%emt 0:00:00]} 47. Kf2 {[%emt 0:00:00]} 1/2-1/2

[Event "SVK-ch Open 2018"]
[Site "Banska Stiavnica"]
[Date "2018.07.14"]
[Round "8"]
[White "Kerdik, Adam"]
[Black "Bombek, Peter"]
[Result "0-1"]
[ECO "D35"]
[WhiteElo "2091"]
[BlackElo "2201"]
[Annotator "NA"]
[PlyCount "116"]
[EventDate "2018.07.07"]
[EventType "swiss"]
[EventCountry "SVK"]
[SourceTitle "playchess.com"]
[Source "ChessBase"]
[SourceQuality "1"]
[TimeControl "40/5400+30:1800+30"]

1. d4 {[%emt 0:00:00]} d5 {[%emt 0:00:00]} 2. c4 {[%emt 0:00:00]} e6 {[%emt 0:00:13]} 3. Nc3 {[%emt 0:00:00]} Nf6 {[%emt 0:00:08]} 4. cxd5 {[%emt 0:00:05]} exd5 {[%emt 0:00:04]} 5. Bg5 {[%emt 0:00:05]} Be7 {[%emt 0:00:08]} 6. e3 {[%emt 0:00:12]} c6 {[%emt 0:00:05]} 7. Bd3 {[%emt 0:00:07]} Nbd7 {[%emt 0:00:08]} 8. Nge2 {[%emt 0:01:11]} h6 {[%emt 0:00:08]} 9. Bh4 {[%emt 0:01:08] D35: Damengambit (Abtauschvariante)} Nh5 {[%emt 0:00:09]} 10. Bxe7 {[%emt 0:00:31]} Qxe7 {[%emt 0:00:06]} 11. Qd2 {[%emt 0:02:58]} Nb6 {[%emt 0:01:07] LiveBook: 6 Games} 12. O-O {[%emt 0:02:34]} (12. f3 Bd7 13. O-O O-O 14. g4 Nf6 15. Ng3 Ne8 16. Rae1 {1-0 (43) Mamedyarov,S (2766)-Adams,M (2751) Sharjah 2017 CBM 177 [Hillarp Persson,T]}) 12... O-O {[%emt 0:02:12]} 13. f3 {[%emt 0:04:44]} f5 {[%emt 0:06:04]} 14. Rae1 {[%emt 0:05:22]} Bd7 {[%emt 0:01:06]} 15. Nc1 $146 {[%emt 0:02:00]} ({Vorgänger:} 15. Nf4 Nxf4 16. exf4 Qb4 {1-0 (30) David,A (2414)-Musat,A (2397) Baile Govora 2017}) 15... Rae8 {[%emt 0:01:52]} 16. Nb3 {[%emt 0:04:21]} Nc8 {[%emt 0:01:16]} 17. Nc5 {[%emt 0:03:12]} Nd6 {[%emt 0:00:49]} 18. Nxd7 {[%emt 0:02:12]} Qxd7 {[%emt 0:00:12]} 19. Na4 {[%emt 0:01:49]} Qe7 {[%emt 0:10:54]} 20. Re2 {[%emt 0:06:08]} Qf6 {[%emt 0:08:15]} 21. Qb4 {[%emt 0:11:49]} Re7 {[%emt 0:04:00]} 22. Rfe1 {[%emt 0:04:15]} g6 {[%emt 0:08:55]} 23. Nc5 {[%emt 0:08:33]} Rfe8 {[%emt 0:01:58]} 24. a4 {[%emt 0:03:05]} Kh7 {[%emt 0:09:19]} 25. a5 {[%emt 0:01:09]} a6 {[%emt 0:03:06]} 26. b3 {[%emt 0:02:33]} Ng7 {[%emt 0:01:28]} 27. Bb1 {[%emt 0:01:29]} Nb5 {[%emt 0:02:06]} 28. Bd3 {[%emt 0:03:51]} Ne6 {[%emt 0:03:48]} 29. Bxb5 {[%emt 0:03:17]} axb5 {[%emt 0:02:25]} 30. Nxe6 {[%emt 0:01:35]} Rxe6 {[%emt 0:00:21]} 31. g3 {[%emt 0:04:11]} h5 {[%emt 0:01:12]} 32. Kf2 {[%emt 0:06:06]} Kg7 {[%emt 0:01:17]} 33. Qd2 {[%emt 0:06:33]} h4 {[%emt 0:01:09]} 34. Rg1 {[%emt 0:01:06]} hxg3+ {[%emt 0:01:41]} 35. hxg3 {[%emt 0:00:17]} Rh8 {[%emt 0:00:24]} 36. Ke1 {[%emt 0:00:55]} Qe7 {[%emt 0:02:17]} 37. b4 {[%emt 0:02:26]} Rh3 {[%emt 0:00:48]} 38. Kd1 {[%emt 0:01:40]} Qg5 {[%emt 0:03:40]} 39. Qe1 {[%emt 0:01:28]} Re8 {[%emt 0:02:03]} 40. Kd2 {[%emt 0:02:10]} Qd8 {[%emt 0:07:10]} 41. Qc1 {[%emt 0:32:52]} Qc7 {[%emt 0:35:01]} 42. f4 {[%emt 0:00:00]} Qe7 {[%emt 0:00:00]} 43. Qc3 {[%emt 0:00:00]} Reh8 {[%emt 0:00:00]} 44. g4 {[%emt 0:00:00]} Rh2 {[%emt 0:00:00]} 45. g5 {[%emt 0:00:00]} Rxe2+ {[%emt 0:00:00]} 46. Kxe2 {[%emt 0:00:00]} Rh2+ {[%emt 0:00:00]} 47. Kd1 {[%emt 0:00:00]} Qe4 {[%emt 0:00:00]} 48. Kc1 {[%emt 0:00:00]} Qf3 {[%emt 0:00:00]} 49. Re1 {[%emt 0:00:00]} Qf2 {[%emt 0:00:00]} (49... Qg3 $142 50. a6 bxa6) 50. Rd1 {[%emt 0:01:53]} Kf7 {[%emt 0:00:00]} 51. Rd2 {[%emt 0:02:47]} Qe1+ {[%emt 0:00:00]} 52. Kc2 {[%emt 0:00:05] [#]} Rh1 $19 {[%emt 0:00:00]} 53. Kb3 {[%emt 0:01:07]} Rh3 {[%emt 0:04:37]} 54. Rd3 {[%emt 0:00:34]} Qb1+ {[%emt 0:00:58]} 55. Ka3 {[%emt 0:00:12]} Rh1 {[%emt 0:01:58]} 56. Rd2 {[%emt 0:00:44]} Re1 {[%emt 0:02:59]} 57. Rh2 {[%emt 0:00:33]} Rd1 {[%emt 0:01:40]} 58. Rb2 {[%emt 0:00:33]} Qa1+ {[%emt 0:00:23]} 0-1

[Event "SVK-ch Open 2018"]
[Site "Banska Stiavnica"]
[Date "2018.07.14"]
[Round "8"]
[White "Pniaczek, Marek"]
[Black "Kostolansky, Sebastian Lukas"]
[Result "1-0"]
[ECO "A46"]
[WhiteElo "2082"]
[BlackElo "2197"]
[Annotator "NA"]
[PlyCount "115"]
[EventDate "2018.07.07"]
[EventType "swiss"]
[EventCountry "SVK"]
[SourceTitle "playchess.com"]
[Source "ChessBase"]
[SourceQuality "1"]
[TimeControl "40/5400+30:1800+30"]

1. d4 {[%emt 0:00:00]} Nf6 {[%emt 0:00:00]} 2. Nf3 {[%emt 0:00:00]} e6 {[%emt 0:01:49]} 3. c4 {[%emt 0:00:00]} d5 {[%emt 0:00:04]} 4. g3 {[%emt 0:00:00]} Bb4+ {[%emt 0:00:50]} 5. Bd2 {[%emt 0:00:00] E01: Catalan: Early deviations} Bd6 {[%emt 0:00:20]} (5... Be7 6. Bg2 O-O 7. O-O Nbd7 8. b4 c6 9. a4 Bd6 10. Qc2 e5 11. cxd5 cxd5 12. dxe5 Nxe5 13. Bc3 Re8 14. Nbd2 Nxf3+ 15. Bxf3 Bh3 {½-½ (58) So,W (2778)-Karjakin,S (2782) Stavanger 2018}) 6. Bg2 {[%emt 0:00:43]} O-O {[%emt 0:01:03]} 7. O-O {[%emt 0:02:26]} Nbd7 {[%emt 0:11:08]} 8. Qc2 {[%emt 0:03:27]} dxc4 {[%emt 0:04:43]} 9. Qxc4 {[%emt 0:01:15]} Qe7 {[%emt 0:05:27]} 10. Nc3 {[%emt 0:07:33]} a6 $146 {[%emt 0:05:39]} ({Predecessor:} 10... e5 11. e3 Nb6 12. Qe2 e4 13. Ng5 Bg4 14. Qe1 Bf5 15. f3 exf3 16. Rxf3 {0-1 (34) Lin,Y (2325)-Xu,X (2461) Shenzhen 2016}) 11. a4 {[%emt 0:02:39]} h6 {[%emt 0:06:44]} 12. e4 {[%emt 0:03:38]} e5 {[%emt 0:00:30]} 13. dxe5 {[%emt 0:08:26]} Nxe5 {[%emt 0:05:08]} 14. Nxe5 {[%emt 0:01:11]} Bxe5 {[%emt 0:00:55]} 15. f4 {[%emt 0:05:35]} Be6 {[%emt 0:02:21]} 16. Nd5 {[%emt 0:02:28]} Bxd5 {[%emt 0:00:08]} 17. exd5 {[%emt 0:00:06]} b5 {[%emt 0:09:36]} 18. axb5 {[%emt 0:15:54]} axb5 {[%emt 0:00:34]} 19. Qxb5 {[%emt 0:00:17]} Rab8 {[%emt 0:22:43]} 20. Qc4 {[%emt 0:00:41]} Bxb2 {[%emt 0:01:54]} 21. Ra7 {[%emt 0:01:35]} Ne8 {[%emt 0:03:23]} 22. Re1 {[%emt 0:04:40]} Qf6 {[%emt 0:00:48]} 23. Kh1 {[%emt 0:07:44]} Nd6 {[%emt 0:01:19]} 24. Qd3 {[%emt 0:00:49]} Rfc8 {[%emt 0:06:56]} 25. g4 {[%emt 0:07:45]} Ra8 {[%emt 0:05:14]} 26. Rxa8 {[%emt 0:02:47]} Rxa8 {[%emt 0:00:00]} 27. g5 {[%emt 0:01:03]} hxg5 {[%emt 0:01:04]} 28. fxg5 {[%emt 0:00:05]} Qf2 {[%emt 0:01:22]} 29. Qe3 {[%emt 0:11:12]} Qf5 {[%emt 0:01:27]} 30. Rf1 {[%emt 0:01:18]} Qc2 {[%emt 0:01:10]} 31. Bb4 {[%emt 0:03:36]} Re8 {[%emt 0:00:29]} 32. Qf3 {[%emt 0:01:12]} Re7 {[%emt 0:00:34]} 33. h3 {[%emt 0:01:18]} Be5 {[%emt 0:00:31]} 34. Qg4 {[%emt 0:01:18]} Qg6 {[%emt 0:00:33]} 35. h4 {[%emt 0:00:22]} f5 {[%emt 0:00:24]} 36. Qf3 {[%emt 0:01:43]} Rf7 {[%emt 0:00:30]} 37. Bxd6 {[%emt 0:01:18]} cxd6 {[%emt 0:00:19]} 38. Bh3 {[%emt 0:00:23]} Qh7 {[%emt 0:00:42]} 39. h5 {[%emt 0:00:12]} g6 {[%emt 0:00:19]} 40. hxg6 {[%emt 0:01:13]} Qxg6 {[%emt 0:00:06]} 41. Bxf5 {[%emt 0:31:29]} Qg7 {[%emt 0:14:29]} 42. Qh3 {[%emt 0:00:00]} Qh8 {[%emt 0:03:04]} 43. Kg2 {[%emt 0:00:00]} Qxh3+ {[%emt 0:00:20]} 44. Kxh3 {[%emt 0:00:00]} Rb7 {[%emt 0:01:12]} 45. Kg4 {[%emt 0:00:00]} Kg7 {[%emt 0:00:24]} 46. Rc1 {[%emt 0:00:00]} Rb4+ {[%emt 0:08:42]} 47. Kh5 {[%emt 0:00:00]} Rb7 $16 {[%emt 0:00:10]} 48. Rc8 {[%emt 0:00:00]} Re7 {[%emt 0:00:07]} 49. Be6 {[%emt 0:00:00]} Kh7 {[%emt 0:00:14]} 50. Rd8 {[%emt 0:00:00]} Bf4 {[%emt 0:04:33]} 51. g6+ {[%emt 0:04:34]} Kg7 {[%emt 0:00:05]} 52. Rg8+ {[%emt 0:00:01]} Kf6 {[%emt 0:00:07]} 53. Rf8+ {[%emt 0:00:02]} Ke5 {[%emt 0:00:31]} 54. Rf5+ {[%emt 0:00:26]} Ke4 {[%emt 0:00:07]} 55. Rxf4+ {[%emt 0:00:22]} Kxf4 {[%emt 0:00:40]} 56. Kh6 {[%emt 0:00:05]} Kg3 {[%emt 0:02:40]} 57. g7 {[%emt 0:00:13]} Kh4 {[%emt 0:00:30]} 58. g8=Q {[%emt 0:00:43]} 1-0

[Event "SVK-ch Open 2018"]
[Site "Banska Stiavnica"]
[Date "2018.07.14"]
[Round "8"]
[White "Ferkova, Dominika"]
[Black "Kanakova, Natalie"]
[Result "1-0"]
[ECO "A40"]
[WhiteElo "2075"]
[BlackElo "2206"]
[Annotator "NA"]
[PlyCount "95"]
[EventDate "2018.07.07"]
[EventType "swiss"]
[EventCountry "SVK"]
[SourceTitle "playchess.com"]
[Source "ChessBase"]
[SourceQuality "1"]
[TimeControl "40/5400+30:1800+30"]

1. d4 {[%emt 0:00:00]} d5 {[%emt 0:00:00]} 2. c4 {[%emt 0:00:00]} e6 {[%emt 0:00:13]} 3. Nc3 {[%emt 0:00:00]} Nf6 {[%emt 0:00:11]} 4. Nf3 {[%emt 0:00:00]} c5 {[%emt 0:00:18]} 5. e3 {[%emt 0:00:34]} Nc6 6. Bd3 {[%emt 0:01:44]} dxc4 {[%emt 0:01:53]} 7. Bxc4 {[%emt 0:00:08]} a6 {[%emt 0:01:05]} 8. O-O $11 {[%emt 0:03:23] LiveBook: 60 Games} b5 {[%emt 0:01:22]} 9. Bb3 {[%emt 0:00:06]} Bb7 {[%emt 0:01:32]} 10. Qe2 {[%emt 0:02:13]} Qc7 {[%emt 0:04:31]} 11. d5 {[%emt 0:03:05]} exd5 {[%emt 0:04:52]} 12. Nxd5 {[%emt 0:00:12]} Nxd5 {[%emt 0:00:32]} 13. Bxd5 {[%emt 0:00:10]} Be7 {[%emt 0:03:02]} 14. e4 {[%emt 0:04:12]} O-O {[%emt 0:01:41]} 15. Be3 {[%emt 0:01:04]} c4 {[%emt 0:03:05]} 16. Rac1 {[%emt 0:00:59]} Nb4 {[%emt 0:08:57]} 17. Bxb7 {[%emt 0:04:56]} Qxb7 {[%emt 0:00:23]} 18. b3 {[%emt 0:00:32]} cxb3 {[%emt 0:10:00]} 19. Bf4 {[%emt 0:04:24]} bxa2 {[%emt 0:04:43]} 20. Rc7 {[%emt 0:01:37]} Qb6 {[%emt 0:07:38]} 21. Rxe7 {[%emt 0:06:33]} Qf6 {[%emt 0:00:29]} 22. Bg5 {[%emt 0:00:26]} Qc3 {[%emt 0:02:30]} 23. Bd2 {[%emt 0:03:44]} Qb2 {[%emt 0:02:34]} 24. Qe1 {[%emt 0:01:14]} Nc2 {[%emt 0:01:48]} 25. Bc3 {[%emt 0:03:44]} Qa3 {[%emt 0:01:14]} 26. Qd2 {[%emt 0:02:06]} Qxe7 {[%emt 0:01:31]} 27. Qxc2 {[%emt 0:00:07]} Qe6 {[%emt 0:10:59]} 28. Qb2 {[%emt 0:01:56]} f6 {[%emt 0:04:15]} 29. e5 {[%emt 0:01:32]} fxe5 {[%emt 0:01:04]} 30. Bxe5 {[%emt 0:00:57]} Ra7 {[%emt 0:02:22]} 31. h3 {[%emt 0:03:31]} Re7 {[%emt 0:03:20]} 32. Bd4 {[%emt 0:01:40]} Qc4 {[%emt 0:01:21]} 33. Rc1 {[%emt 0:01:41]} Re2 {[%emt 0:02:02]} 34. Qa3 {[%emt 0:07:14]} Rc2 {[%emt 0:05:18]} 35. Re1 {[%emt 0:04:58]} b4 {[%emt 0:01:00]} 36. Qe3 {[%emt 0:00:55]} Qf7 {[%emt 0:07:23]} 37. Ng5 {[%emt 0:04:11]} Qf5 {[%emt 0:02:10]} 38. Qe7 {[%emt 0:02:38]} Qg6 {[%emt 0:00:06]} 39. Re6 {[%emt 0:07:11]} a1=Q+ {[%emt 0:01:15]} 40. Bxa1 {[%emt 0:00:03]} Rc1+ {[%emt 0:00:22]} 41. Kh2 {[%emt 0:30:31]} Rc7 {[%emt 0:03:28]} 42. Qxf8+ {[%emt 0:00:00]} Kxf8 {[%emt 0:00:13]} 43. Rxg6 {[%emt 0:00:00]} hxg6 {[%emt 0:01:02]} 44. Ne6+ {[%emt 0:00:00]} Ke7 {[%emt 0:00:08]} 45. Nxc7 {[%emt 0:00:00]} a5 {[%emt 0:00:07]} 46. Nd5+ {[%emt 0:00:00]} Kd6 {[%emt 0:00:05]} 47. Nxb4 {[%emt 0:00:00]} axb4 {[%emt 0:00:07]} 48. Bxg7 {[%emt 0:00:00]} 1-0